bitfinex-derivatives/quotes_BTCF0:USTF0_20260119
["timestamp","ask_amount","ask_price","bid_price","bid_amount"]
[1768785245721,0.09704,92826.0,92808.0,0.11595622]
[1768785245911,0.09704,92827.0,92808.0,0.12673522]
[1768785246111,0.15541275,92830.0,92808.0,0.12673522]
[1768785246317,0.15541275,92830.0,92808.0,0.11611783]
[1768785246624,0.09704,92838.0,92816.0,0.11595622]
[1768785246807,0.09704,92839.0,92819.0,0.11595622]
[1768785247007,0.19255877,92839.0,92819.0,0.11595622]
[1768785247309,0.09551877,92829.0,92808.0,0.00016161]
[1768785247510,0.10629577,92827.0,92811.0,0.09704]
[1768785248324,0.09551877,92827.0,92811.0,0.09704]
[1768785249019,0.05579,92829.0,92811.0,0.09704]
[1768785249319,0.05579,92829.0,92812.0,0.11595622]
[1768785249707,0.05579,92829.0,92811.0,0.09704]
[1768785250018,0.09551877,92828.0,92811.0,0.09704]
[1768785250317,0.05579,92829.0,92812.0,0.11595622]
[1768785251910,0.09551877,92827.0,92811.0,0.09704]
[1768785253225,0.09551877,92826.0,92811.0,0.09704]
[1768785253423,0.09551877,92824.0,92811.0,0.09704]
[1768785253716,0.02,92824.0,92811.0,0.21062575]
[1768785254627,0.05579,92829.0,92811.0,0.21062575]
[1768785254927,0.05579,92829.0,92813.0,0.11595622]
[1768785255814,0.066567,92829.0,92813.0,0.11595622]
[1768785256016,0.010777,92827.0,92811.0,0.09466953]
[1768785256214,0.09551877,92826.0,92811.0,0.09466953]
[1768785256423,0.010777,92825.0,92811.0,0.09466953]
[1768785257014,0.09551877,92826.0,92811.0,0.09466953]
[1768785257526,0.05579,92829.0,92811.0,0.09466953]
[1768785258326,0.010777,92825.0,92811.0,0.09466953]
[1768785259720,0.15130877,92829.0,92811.0,0.09466953]
[1768785260116,0.05579,92829.0,92812.0,0.11595622]
[1768785260317,0.05579,92829.0,92811.0,0.09466953]
[1768785261313,0.05579,92829.0,92811.0,0.22140475]
[1768785261516,0.05579,92829.0,92812.0,0.11595622]
[1768785263532,0.010777,92828.0,92812.0,0.11595622]
[1768785264123,0.13808531,92822.0,92812.0,0.11595622]
[1768785264529,0.13808531,92822.0,92814.0,0.11208647]
[1768785264729,0.05579,92829.0,92814.0,0.11208647]
[1768785264730,0.13808531,92824.0,92814.0,0.11208647]
[1768785265025,0.05579,92829.0,92814.0,0.11208647]
[1768785265223,0.05579,92829.0,92816.0,0.11208647]
[1768785270528,0.010777,92828.0,92812.0,0.11208647]
[1768785270827,0.05579,92829.0,92812.0,0.11208647]
[1768785271229,0.05579,92829.0,92813.0,0.010779]
[1768785271527,0.05579,92829.0,92813.0,0.12286547]
[1768785272116,0.05579,92829.0,92813.0,0.11208647]
[1768785272624,0.05579,92829.0,92811.0,0.09466953]
[1768785272816,0.15877481,92829.0,92811.0,0.206756]
[1768785273020,0.14799781,92829.0,92811.0,0.217535]
[1768785273225,0.14799781,92829.0,92812.0,0.11208647]
[1768785273422,0.05579,92829.0,92813.0,0.11208647]
[1768785273721,0.010777,92828.0,92811.0,0.18817248]
[1768785274028,0.13808531,92821.0,92811.0,0.09466953]
[1768785275032,0.05579,92829.0,92813.0,0.11208647]
[1768785275234,0.05579,92829.0,92814.0,0.11208647]
[1768785275429,0.13808531,92824.0,92811.0,0.09466953]
[1768785275627,0.13808531,92821.0,92811.0,0.09466953]
[1768785276429,0.13808531,92821.0,92810.0,0.097]
[1768785277428,0.11590833,92826.0,92810.0,0.107779]
[1768785277733,0.13808531,92820.0,92810.0,0.097]
[1768785277934,0.13808531,92820.0,92810.0,0.20873082]
[1768785278930,0.09220781,92827.0,92810.0,0.20873082]
[1768785279237,0.13808531,92820.0,92810.0,0.20873082]
[1768785279629,0.13808531,92820.0,92810.0,0.097]
[1768785279831,0.010778,92818.0,92810.0,0.097]
[1768785280030,0.010778,92821.0,92808.0,0.00016161]
[1768785280232,0.13808531,92818.0,92808.0,0.00016161]
[1768785280628,0.09546859,92819.0,92799.0,0.12251082]
[1768785280831,0.13808531,92810.0,92800.0,0.097]
[1768785281029,0.09546859,92819.0,92800.0,0.097]
[1768785281224,0.13808531,92810.0,92792.0,0.0289426]
[1768785281427,0.13808531,92802.0,92793.0,0.097]
[1768785281639,0.09546859,92808.0,92793.0,0.097]
[1768785282334,0.13808531,92803.0,92793.0,0.097]
[1768785282538,0.13808531,92803.0,92791.0,0.00016161]
[1768785282742,0.13808531,92801.0,92791.0,0.00016161]
[1768785284228,0.09546859,92803.0,92791.0,0.00016161]
[1768785284434,0.00016161,92806.0,92793.0,0.20638393]
[1768785284630,0.09704,92815.0,92798.0,0.11173082]
[1768785285042,0.13808531,92810.0,92798.0,0.11173082]
[1768785285438,0.13808531,92810.0,92799.0,0.01078]
[1768785285737,0.11574543,92820.0,92799.0,0.12251082]
[1768785285939,0.34929933,92820.0,92799.0,0.12251082]
[1768785286137,0.13808531,92810.0,92799.0,0.12251082]
[1768785286438,0.13808531,92820.0,92804.0,0.11173082]
[1768785286644,0.20328559,92826.0,92807.0,0.010779]
[1768785286941,0.13808531,92820.0,92807.0,0.010779]
[1768785287446,0.00016161,92821.0,92807.0,0.010779]
[1768785287635,0.13808531,92820.0,92804.0,0.11173082]
[1768785288942,0.13808531,92820.0,92805.0,0.01078]
[1768785289144,0.00016161,92821.0,92808.0,0.12250982]
[1768785289346,0.13808531,92820.0,92808.0,0.11173082]
[1768785289842,0.13808531,92820.0,92805.0,0.10543311]
[1768785290040,0.13808531,92815.0,92797.0,0.20877082]
[1768785290346,0.13808531,92810.0,92797.0,0.09704]
[1768785290935,0.13808531,92810.0,92800.0,0.01078]
[1768785291556,0.13808531,92820.0,92806.0,0.01078]
[1768785291837,0.00016161,92821.0,92807.0,0.11173082]
[1768785292044,0.13808531,92817.0,92797.0,0.09704]
[1768785292246,0.13808531,92810.0,92797.0,0.09704]
[1768785292443,0.13808531,92807.0,92794.0,0.11173082]
[1768785292636,0.13808531,92810.0,92795.0,0.09704]
[1768785292840,0.13808531,92810.0,92798.0,0.01078]
[1768785293040,0.00016161,92821.0,92808.0,0.010779]
[1768785293246,0.13808531,92820.0,92808.0,0.010779]
[1768785293440,0.22640531,92820.0,92806.0,0.11240844]
[1768785294539,0.2303962,92819.0,92798.0,0.01078]
[1768785294846,0.13808531,92810.0,92799.0,0.09704]
[1768785295540,0.13808531,92810.0,92800.0,0.01078]
[1768785295743,0.13808531,92810.0,92799.0,0.09704]
[1768785296043,0.14886431,92810.0,92799.0,0.09704]
[1768785296350,0.09985824,92808.0,92791.0,0.09720161]
[1768785296538,0.13808531,92801.0,92791.0,0.09720161]
[1768785296957,0.11063824,92803.0,92791.0,0.00016161]
[1768785297135,0.09985824,92803.0,92791.0,1e-08]
[1768785298243,0.01078,92800.0,92791.0,1e-08]
[1768785298446,0.2303982,92803.0,92791.0,1e-08]
[1768785298837,0.09985824,92802.0,92791.0,1e-08]
[1768785300949,0.2196182,92801.0,92791.0,1e-08]
[1768785301138,0.010778,92818.0,92776.0,0.010783]
[1768785301139,0.09985824,92795.0,92776.0,0.010783]
[1768785301333,0.09985824,92795.0,92778.0,0.010783]
[1768785301538,0.09985824,92785.0,92768.0,0.0386059]
[1768785301744,0.09985824,92770.0,92753.0,0.04061712]
[1768785302041,0.2196182,92781.0,92755.0,0.11240844]
[1768785302242,0.00016171,92771.0,92759.0,0.12319344]
[1768785302448,7.1e-07,92771.0,92761.0,0.010785]
[1768785303348,7.1e-07,92771.0,92760.0,0.010785]
[1768785303534,7.1e-07,92771.0,92758.0,0.11240844]
[1768785303940,7.1e-07,92771.0,92758.0,0.010785]
[1768785304145,7.1e-07,92771.0,92760.0,0.010785]
[1768785304347,7.1e-07,92771.0,92762.0,0.010785]
[1768785304850,0.2196182,92780.0,92763.0,0.010784]
[1768785305151,0.09985824,92776.0,92756.0,0.09704]
[1768785305340,0.09985824,92774.0,92756.0,0.09704]
[1768785305941,0.09985824,92774.0,92752.0,0.11257015]
[1768785307148,0.09985824,92774.0,92754.0,0.010786]
[1768785307446,0.09985824,92782.0,92757.0,0.11240844]
[1768785307755,0.00016171,92773.0,92763.0,0.010784]
[1768785308945,0.00016171,92773.0,92762.0,0.010785]
[1768785309541,0.11975996,92797.0,92769.0,0.20953299]
[1768785309747,0.02366815,92796.0,92780.0,0.010782]
[1768785309947,0.09985824,92811.0,92789.0,0.11240844]
[1768785310254,0.00237047,92809.0,92798.0,0.01078]
[1768785310851,4.7e-07,92809.0,92794.0,0.2096947]
[1768785311047,4.7e-07,92809.0,92796.0,0.11240844]
[1768785311952,4.7e-07,92809.0,92798.0,0.01078]
[1768785312154,5e-08,92813.0,92800.0,0.11240844]
[1768785312454,5e-08,92813.0,92809.0,0.010779]
[1768785312658,0.11975996,92833.0,92794.0,0.00116171]
[1768785312659,0.09985824,92832.0,92808.0,0.11240844]
[1768785313255,0.09985824,92832.0,92813.0,0.010779]
[1768785313848,0.09985824,92832.0,92813.0,0.00016161]
[1768785314760,0.09985824,92832.0,92814.0,0.010778]
[1768785315058,0.053856,92882.0,92817.0,0.010778]
[1768785315059,0.09985824,92838.0,92817.0,0.010778]
[1768785315260,0.09985824,92838.0,92814.0,0.11240844]
[1768785315854,0.09704,92843.0,92813.0,0.00016161]
[1768785316062,0.0733,92837.0,92822.0,0.11240844]
[1768785316263,0.0733,92837.0,92822.0,0.20944844]
[1768785316558,0.0733,92837.0,92823.0,0.010778]
[1768785317361,0.09985824,92851.0,92831.0,0.010777]
[1768785317551,0.09985824,92851.0,92829.0,0.09712455]
[1768785317552,0.09985824,92849.0,92826.0,0.010777]
[1768785317863,0.09704,92855.0,92832.0,0.010776]
[1768785318073,0.13704,92855.0,92832.0,0.010776]
[1768785318361,0.11975996,92852.0,92828.0,0.00016161]
[1768785318556,0.2196182,92846.0,92828.0,0.00016161]
[1768785318763,0.010775,92847.0,92828.0,0.00016161]
[1768785318764,0.2196182,92844.0,92828.0,0.00016161]
[1768785318962,0.09985824,92843.0,92828.0,0.00016161]
[1768785319960,0.09985824,92841.0,92825.0,0.09704]
[1768785320161,0.09985824,92837.0,92820.0,0.09704]
[1768785320854,0.09985824,92836.0,92820.0,0.09704]
[1768785321060,0.09985824,92835.0,92820.0,0.09704]
[1768785321759,0.09985824,92834.0,92820.0,0.09704]
[1768785321961,0.09985824,92829.0,92810.0,0.09704]
[1768785322165,0.12427111,92828.0,92809.0,0.09704]
[1768785322352,0.02441287,92827.0,92809.0,0.107819]
[1768785322554,0.09985824,92828.0,92809.0,0.107819]
[1768785322750,0.02435914,92827.0,92809.0,0.107819]
[1768785323057,0.02435934,92826.0,92812.0,0.010779]
[1768785323259,0.09985824,92828.0,92809.0,0.09720161]
[1768785323466,0.02435687,92827.0,92810.0,0.010779]
[1768785323759,0.09985824,92828.0,92810.0,0.010779]
[1768785323965,0.02435682,92827.0,92810.0,0.010779]
[1768785324269,0.09985824,92828.0,92809.0,0.10798061]
[1768785324476,0.09395875,92826.0,92809.0,0.10798061]
[1768785324766,0.09395875,92826.0,92809.0,0.09720161]
[1768785325265,0.09395875,92824.0,92809.0,0.09720161]
[1768785325472,0.09395875,92822.0,92809.0,1e-08]
[1768785325657,0.20466811,92820.0,92809.0,1e-08]
[1768785325969,0.09395875,92819.0,92809.0,1e-08]
[1768785327762,0.00016161,92823.0,92809.0,1e-08]
[1768785327963,0.22902198,92822.0,92809.0,1e-08]
[1768785328165,0.20466811,92822.0,92809.0,1e-08]
[1768785328567,0.00016161,92823.0,92809.0,1e-08]
[1768785328868,0.1290903,92822.0,92809.0,1e-08]
[1768785329079,0.09395875,92821.0,92809.0,1e-08]
[1768785329265,0.11070936,92820.0,92809.0,1e-08]
[1768785329465,0.09395875,92819.0,92809.0,1e-08]
[1768785329967,0.09395875,92817.0,92809.0,1e-08]
[1768785330964,0.10473675,92817.0,92809.0,1e-08]
[1768785331766,0.21544611,92817.0,92809.0,1e-08]
[1768785331965,0.09395875,92816.0,92809.0,1e-08]
[1768785333070,0.20466811,92816.0,92809.0,1e-08]
[1768785334361,0.09395875,92822.0,92809.0,1e-08]
[1768785334557,0.02437515,92821.0,92809.0,1e-08]
[1768785334771,0.02437515,92820.0,92809.0,1e-08]
[1768785334972,0.02437515,92819.0,92809.0,1e-08]
[1768785335276,0.010778,92815.0,92809.0,1e-08]
[1768785335572,0.09395875,92814.0,92809.0,1e-08]
[1768785337071,0.09395875,92812.0,92809.0,1e-08]
[1768785337260,0.09395875,92818.0,92809.0,1e-08]
[1768785337464,0.02440269,92817.0,92809.0,1e-08]
[1768785337673,0.02440269,92816.0,92809.0,1e-08]
[1768785337869,0.02440269,92815.0,92809.0,1e-08]
[1768785338071,0.12316093,92814.0,92809.0,1e-08]
[1768785338268,0.02441569,92813.0,92809.0,1e-08]
[1768785338471,0.02441569,92812.0,92809.0,1e-08]
[1768785338670,0.09875824,92814.0,92809.0,1e-08]
[1768785338974,0.12317393,92813.0,92809.0,1e-08]
[1768785339173,0.02441569,92812.0,92809.0,1e-08]
[1768785339377,0.02443263,92811.0,92809.0,1e-08]
[1768785339569,0.09875824,92813.0,92809.0,1e-08]
[1768785339771,0.12319087,92812.0,92809.0,1e-08]
[1768785339969,0.02443263,92811.0,92809.0,1e-08]
[1768785340170,0.09875824,92812.0,92809.0,1e-08]
[1768785340370,0.02443944,92811.0,92809.0,1e-08]
[1768785340675,0.02443944,92810.0,92809.0,1e-08]
[1768785340977,0.02443944,92811.0,92809.0,1e-08]
[1768785341274,0.02443944,92810.0,92809.0,1e-08]
[1768785341476,0.02443944,92811.0,92809.0,1e-08]
[1768785342482,0.09875824,92810.0,92809.0,1e-08]
[1768785342776,0.12319768,92810.0,92809.0,1e-08]
[1768785343176,0.15319768,92810.0,92809.0,1e-08]
[1768785343378,0.09875824,92801.0,92793.0,0.09704]
[1768785343780,0.13814654,92810.0,92796.0,0.010781]
[1768785343781,0.09875824,92807.0,92796.0,0.010781]
[1768785343973,0.02445041,92806.0,92796.0,0.010781]
[1768785344168,0.09875824,92814.0,92793.0,0.09704]
[1768785344466,0.02445035,92813.0,92801.0,0.01078]
[1768785344666,3.5e-07,92812.0,92801.0,0.20062483]
[1768785344870,0.09704,92819.0,92810.0,0.010779]
[1768785345275,0.00016161,92823.0,92803.0,0.20062483]
[1768785345479,0.00016161,92823.0,92817.0,0.010778]
[1768785345678,0.09704,92831.0,92817.0,0.010778]
[1768785345866,0.107817,92831.0,92814.0,0.010779]
[1768785346072,0.20657524,92831.0,92814.0,0.010779]
[1768785346380,0.20657524,92831.0,92810.0,0.1095195]
[1768785346681,0.19579824,92831.0,92810.0,0.1095195]
[1768785346881,0.19579824,92831.0,92811.0,0.00016161]
[1768785347072,0.19579824,92831.0,92816.0,0.010778]
[1768785347278,0.09704,92831.0,92818.0,0.010778]
[1768785347475,0.09704,92831.0,92812.0,0.1095195]
[1768785347670,0.09704,92831.0,92819.0,0.010778]
[1768785347869,0.010776,92835.0,92816.0,0.010778]
[1768785348679,0.10953424,92833.0,92813.0,0.010779]
[1768785349576,0.21620795,92830.0,92811.0,0.00016161]
[1768785349770,0.09875824,92829.0,92811.0,0.00016161]
[1768785349977,0.09875824,92829.0,92816.0,0.010778]
[1768785350278,2.4e-07,92829.0,92811.0,0.00016161]
[1768785350480,0.07755057,92850.0,92833.0,0.1095195]
[1768785350679,0.2250287,92859.0,92834.0,0.20062483]
[1768785350680,0.11744971,92859.0,92834.0,0.20062483]
[1768785350885,0.11744971,92853.0,92832.0,0.09704]
[1768785351183,0.11744971,92853.0,92822.0,0.010778]
[1768785351184,0.07743976,92845.0,92822.0,0.010778]
[1768785351480,0.11744971,92840.0,92824.0,0.010777]
[1768785351878,0.07743976,92837.0,92824.0,0.01093861]
[1768785352274,0.11744971,92840.0,92824.0,0.00016161]
[1768785352477,0.07743976,92836.0,92824.0,0.00016161]
[1768785352881,0.07743976,92834.0,92824.0,0.00016161]
[1768785353076,0.07743976,92836.0,92824.0,0.00016161]
[1768785353474,0.07743976,92834.0,92824.0,0.00016161]
[1768785353674,0.07743976,92835.0,92824.0,0.00016161]
[1768785354081,0.07743976,92833.0,92824.0,0.00016161]
[1768785354376,0.07743976,92835.0,92824.0,0.00016161]
[1768785354782,0.07743976,92833.0,92824.0,0.00016161]
[1768785355079,0.0001613,92838.0,92824.0,0.00016161]
[1768785355479,0.07743976,92834.0,92824.0,0.00016161]
[1768785355686,0.0001613,92838.0,92824.0,0.00016161]
[1768785355878,0.07743976,92834.0,92824.0,0.00016161]
[1768785356385,0.20107427,92793.0,92770.0,0.15388569]
[1768785356680,0.09159792,92783.0,92769.0,0.097]
[1768785356887,0.09159792,92780.0,92765.0,0.097]
[1768785357081,0.09159792,92780.0,92764.0,0.097]
[1768785357286,0.09159792,92780.0,92750.0,0.05774873]
[1768785357287,0.20107427,92776.0,92763.0,0.097]
[1768785357480,0.20107427,92774.0,92758.0,0.097]
[1768785357987,0.07506878,92773.0,92758.0,0.097]
[1768785358586,0.20107427,92774.0,92758.0,0.097]
[1768785358788,0.07506878,92773.0,92758.0,0.097]
[1768785358990,0.07506878,92772.0,92753.0,0.010786]
[1768785359180,0.15554837,92770.0,92749.0,0.010786]
[1768785359387,0.15554837,92770.0,92751.0,0.010786]
[1768785359689,0.15554837,92770.0,92750.0,0.107826]
[1768785359884,0.15554837,92770.0,92750.0,0.09704]
[1768785360392,0.15554837,92770.0,92751.0,0.010786]
[1768785360792,0.23061715,92770.0,92750.0,0.09704]
[1768785360994,0.15554837,92770.0,92751.0,0.0001617]
[1768785361391,0.07506878,92770.0,92751.0,0.0001617]
[1768785361792,0.07506878,92769.0,92751.0,0.0001617]
[1768785361994,0.15554837,92770.0,92751.0,0.0001617]
[1768785362388,0.07506878,92769.0,92751.0,0.0001617]
[1768785362792,0.07506878,92769.0,92752.0,0.010786]
[1768785362988,0.07506878,92768.0,92752.0,0.010786]
[1768785363190,0.07506878,92769.0,92752.0,0.010786]
[1768785363496,0.20107427,92773.0,92752.0,0.010786]
[1768785363692,0.07506878,92770.0,92752.0,0.010786]
[1768785363996,0.07506878,92770.0,92751.0,0.0001617]
[1768785364191,0.07506878,92769.0,92751.0,0.0001617]
[1768785364396,0.07506878,92770.0,92751.0,0.0001617]
[1768785364599,0.15554837,92770.0,92752.0,0.010786]
[1768785364792,0.07506878,92769.0,92752.0,0.010786]
[1768785364998,0.07506878,92769.0,92751.0,0.0001617]
[1768785365199,0.07506878,92768.0,92751.0,0.0001617]
[1768785365498,0.07506878,92770.0,92751.0,0.0001617]
[1768785365698,0.0001617,92769.0,92751.0,0.0001617]
[1768785365900,0.07506878,92768.0,92751.0,0.0109477]
[1768785366095,0.05923832,92777.0,92764.0,0.09613696]
[1768785366399,0.010782,92782.0,92765.0,0.19317696]
[1768785366604,0.07506878,92781.0,92765.0,0.19317696]
[1768785366801,0.07506878,92780.0,92766.0,0.010784]
[1768785367098,0.05834786,92783.0,92766.0,0.010784]
[1768785367099,0.07506878,92777.0,92766.0,0.010784]
[1768785367296,0.010781,92790.0,92770.0,0.010784]
[1768785367599,0.02247725,92789.0,92771.0,0.09613696]
[1768785367801,0.02247725,92788.0,92772.0,0.010783]
[1768785368096,0.01078,92804.0,92783.0,0.010782]
[1768785368295,0.09159792,92808.0,92771.0,0.0001617]
[1768785368296,0.010779,92808.0,92790.0,0.09613696]
[1768785368486,0.010779,92808.0,92791.0,0.09704]
[1768785368691,0.0001617,92808.0,92792.0,0.09704]
[1768785369296,0.09159792,92824.0,92799.0,0.09613696]
[1768785369502,0.16902851,92824.0,92799.0,0.11329426]
[1768785369691,0.16902851,92824.0,92792.0,0.09704]
[1768785369692,0.07743059,92826.0,92802.0,0.11329426]
[1768785369896,0.07743059,92827.0,92804.0,0.11329426]
[1768785370202,0.07101601,92828.0,92805.0,0.22111426]
[1768785370497,0.07101601,92828.0,92808.0,0.010779]
[1768785370802,0.07101601,92828.0,92806.0,0.09704]
[1768785371001,0.07101601,92828.0,92806.0,0.107819]
[1768785371202,0.07101601,92828.0,92808.0,0.00016161]
[1768785371408,0.06023901,92828.0,92808.0,0.01094061]
[1768785371705,0.010777,92827.0,92808.0,0.00016161]
[1768785372498,0.39491139,92830.0,92808.0,0.00016161]
[1768785372804,0.22858602,92830.0,92810.0,0.010779]
[1768785373002,0.22858602,92830.0,92808.0,0.00016161]
[1768785373303,0.22858602,92830.0,92810.0,0.010779]
[1768785373701,0.22858602,92830.0,92813.0,0.010779]
[1768785374304,0.07743059,92830.0,92813.0,0.010779]
[1768785374693,0.07743059,92832.0,92814.0,0.10691596]
[1768785374892,0.07743059,92833.0,92815.0,0.20943122]
[1768785375203,0.07743059,92835.0,92818.0,0.11329426]
[1768785375504,0.07743059,92836.0,92819.0,0.09704]
[1768785375704,0.07743059,92836.0,92823.0,0.010778]
[1768785376000,0.07743059,92837.0,92819.0,0.107818]
[1768785376194,0.07743059,92835.0,92819.0,0.09704]
[1768785376602,0.07743059,92834.0,92819.0,0.09704]
[1768785377307,0.07743059,92833.0,92820.0,0.010778]
[1768785378297,0.09680599,92841.0,92824.0,0.010777]
[1768785378605,0.09680599,92843.0,92819.0,0.21033426]
[1768785378805,0.18840391,92844.0,92819.0,0.21033426]
[1768785379506,0.09680599,92843.0,92824.0,0.010777]
[1768785379705,0.09680599,92843.0,92826.0,0.010777]
[1768785379898,0.09680599,92844.0,92826.0,0.010777]
[1768785380099,0.09680599,92845.0,92826.0,0.010777]
[1768785380299,0.09680599,92845.0,92822.0,0.20943122]
[1768785380300,0.09680599,92849.0,92824.0,0.09613696]
[1768785380505,0.09680599,92850.0,92832.0,0.11329426]
[1768785380801,0.09680599,92852.0,92834.0,0.010776]
[1768785381199,0.09680599,92852.0,92837.0,0.010776]
[1768785381503,0.06491,92851.0,92840.0,0.010776]
[1768785381704,0.09680599,92858.0,92845.0,0.010775]
[1768785381905,0.010773,92862.0,92846.0,0.09704]
[1768785382504,0.09680599,92863.0,92846.0,0.09704]
[1768785382911,0.09680599,92863.0,92847.0,0.09704]
[1768785383211,0.010773,92863.0,92847.0,0.09704]
[1768785383406,0.10757899,92863.0,92843.0,0.09563566]
[1768785383605,0.09156973,92829.0,92820.0,1.08772]
[1768785383800,0.010777,92828.0,92806.0,0.10641466]
[1768785384110,0.010775,92845.0,92802.0,0.0106429]
[1768785384111,0.010776,92837.0,92817.0,0.09563566]
[1768785384309,0.010776,92837.0,92819.0,0.09563566]
[1768785384513,0.00016161,92836.0,92819.0,0.09563566]
[1768785385399,0.010777,92832.0,92820.0,1.34284]
[1768785385604,0.010776,92835.0,92821.0,0.00110947]
[1768785385807,0.03276406,92835.0,92821.0,0.00110947]
[1768785386111,0.03276406,92835.0,92820.0,1.24584]
[1768785386112,0.03276406,92835.0,92812.0,0.09563566]
[1768785386312,0.03276406,92835.0,92813.0,1.44925466]
[1768785386504,0.03276406,92835.0,92814.0,0.09563566]
[1768785386812,0.00016161,92836.0,92817.0,0.20783969]
[1768785387006,0.00016161,92836.0,92818.0,0.09563566]
[1768785387209,0.00016161,92836.0,92824.0,0.20783969]
[1768785387402,0.010774,92854.0,92831.0,0.09563566]
[1768785387602,0.010774,92854.0,92825.0,0.097]
[1768785387603,0.07050378,92855.0,92834.0,0.10641166]
[1768785387802,0.010775,92850.0,92835.0,0.097]
[1768785388004,0.010775,92850.0,92836.0,0.98764]
[1768785388206,0.010775,92842.0,92836.0,0.95650508]
[1768785388406,0.010775,92848.0,92836.0,0.75270167]
[1768785388914,0.15554837,92850.0,92830.0,0.00016161]
[1768785388915,0.010776,92840.0,92830.0,0.00016161]
[1768785389118,0.15554837,92840.0,92830.0,6.1e-07]
[1768785389414,0.010776,92833.0,92831.0,9e-07]
[1768785389604,0.010777,92831.0,92818.0,0.24572]
[1768785389805,0.01182137,92829.0,92810.0,0.09563566]
[1768785390006,0.00104437,92828.0,92811.0,0.33564]
[1768785390411,0.00104437,92853.0,92818.0,0.09563566]
[1768785390709,0.07842462,92853.0,92828.0,0.09563566]
[1768785390915,0.15554837,92850.0,92831.0,0.09563566]
[1768785391215,0.010775,92849.0,92831.0,0.09579727]
[1768785392114,0.07738025,92853.0,92831.0,0.09579727]
[1768785392410,0.15554837,92850.0,92831.0,0.09579727]
[1768785392616,0.010775,92847.0,92831.0,0.09579727]
[1768785392912,0.010775,92845.0,92829.0,0.04722024]
[1768785393516,0.07738025,92841.0,92829.0,0.04722024]
[1768785393709,0.07738025,92835.0,92829.0,0.04722024]
[1768785396114,2.5e-07,92835.0,92830.0,0.09563566]
[1768785396310,0.010774,92853.0,92833.0,0.10641166]
[1768785396515,0.13552839,92853.0,92837.0,0.010776]
[1768785396716,0.13552839,92853.0,92833.0,0.00403282]
[1768785396916,0.14630239,92856.0,92833.0,0.00403282]
[1768785397115,0.13552839,92856.0,92839.0,0.010776]
[1768785397311,0.13552839,92857.0,92840.0,0.097]
[1768785397513,0.010774,92856.0,92840.0,0.097]
[1768785397812,0.13552839,92858.0,92840.0,0.097]
[1768785398212,0.13552839,92859.0,92842.0,0.010775]
[1768785398819,0.13552839,92859.0,92845.0,0.010775]
[1768785399016,0.13552839,92860.0,92846.0,0.09669155]
[1768785399222,0.010774,92858.0,92841.0,0.00016161]
[1768785399624,0.29107676,92860.0,92842.0,0.097]
[1768785399925,0.13552839,92860.0,92843.0,0.010775]
[1768785400120,0.29107676,92860.0,92842.0,0.097]
[1768785400318,0.010773,92859.0,92842.0,0.097]
[1768785400718,0.19910554,92859.0,92841.0,0.00016161]
[1768785400927,0.20987954,92856.0,92842.0,0.097]
[1768785401122,0.010774,92854.0,92842.0,0.097]
[1768785402322,0.19910554,92856.0,92842.0,0.097]
[1768785402715,0.19910554,92856.0,92843.0,0.097]
[1768785403028,0.00016161,92857.0,92844.0,0.097]
[1768785403228,0.010774,92856.0,92844.0,0.097]
[1768785404122,0.09433784,92857.0,92844.0,0.097]
[1768785404327,0.00016161,92857.0,92845.0,0.097]
[1768785404535,0.00016161,92857.0,92846.0,0.097]
[1768785405438,0.096868,92852.0,92846.0,0.097]
[1768785406030,0.096868,92852.0,92847.0,0.097]
[1768785406335,0.096868,92852.0,92848.0,0.097]
[1768785408741,0.096868,92852.0,92848.0,0.03867564]
[1768785409842,0.096868,92852.0,92837.0,0.10941401]
[1768785410047,0.07749746,92844.0,92838.0,1.34348]
[1768785410539,0.07749746,92844.0,92832.0,0.09669155]
[1768785410742,0.07749746,92844.0,92833.0,1.34352]
[1768785410931,0.07749746,92844.0,92834.0,1.34356]
[1768785411345,0.07749746,92844.0,92838.0,0.010776]
[1768785411636,0.096868,92852.0,92841.0,0.010775]
[1768785411845,0.00016161,92857.0,92841.0,0.010775]
[1768785412044,0.00016161,92857.0,92839.0,0.10941401]
[1768785412230,0.00016161,92857.0,92841.0,0.10941401]
[1768785412431,0.00016161,92857.0,92843.0,0.11582493]
[1768785412637,0.00236906,92864.0,92854.0,0.12659893]
[1768785412841,0.00236906,92864.0,92855.0,0.097]
[1768785413638,0.14630039,92874.0,92858.0,0.11582493]
[1768785413835,0.010772,92874.0,92858.0,0.11582493]
[1768785414039,0.13552839,92876.0,92858.0,0.11582493]
[1768785414040,0.13552839,92876.0,92863.0,0.010773]
[1768785414240,0.13552839,92881.0,92860.0,0.21384683]
[1768785414543,0.05867531,92883.0,92860.0,0.21384683]
[1768785414748,0.23772164,92884.0,92860.0,0.21384683]
[1768785415235,0.010771,92881.0,92860.0,0.21384683]
[1768785415436,0.1105957,92882.0,92860.0,0.0980219]
[1768785415735,0.22596889,92882.0,92856.0,0.010774]
[1768785415937,0.0998247,92882.0,92863.0,0.010773]
[1768785416143,0.0998247,92882.0,92860.0,0.21384683]
[1768785416342,0.0998247,92882.0,92863.0,0.00016152]
[1768785417545,0.1105957,92882.0,92863.0,0.00016152]
[1768785417743,0.22596889,92882.0,92863.0,0.00016152]
[1768785419639,0.0998247,92882.0,92863.0,0.00016152]
[1768785419844,0.00236855,92884.0,92867.0,0.010772]
[1768785420041,0.00236855,92884.0,92868.0,0.097]
[1768785420344,0.00236855,92884.0,92868.0,0.05890472]
[1768785420746,0.01313955,92884.0,92868.0,0.05890472]
[1768785421336,0.11296425,92884.0,92868.0,0.05890472]
[1768785421536,0.0998247,92878.0,92868.0,0.097]
[1768785421841,0.010772,92871.0,92852.0,0.94144]
[1768785422036,0.010772,92871.0,92849.0,0.0980219]
[1768785422037,0.03494686,92870.0,92849.0,0.0980219]
[1768785422239,0.010772,92869.0,92849.0,0.0980219]
[1768785422543,0.010772,92872.0,92850.0,0.1949819]
[1768785422734,0.03494686,92872.0,92851.0,0.010774]
[1768785423049,0.010771,92876.0,92853.0,0.010774]
[1768785423346,0.010772,92873.0,92851.0,0.0980219]
[1768785423550,0.03634865,92868.0,92852.0,0.09696]
[1768785423935,0.0998247,92875.0,92856.0,0.010774]
[1768785424540,0.03634865,92872.0,92852.0,0.09696]
[1768785424736,0.010772,92871.0,92852.0,0.09696]
[1768785425047,0.010772,92872.0,92852.0,0.09696]
[1768785425554,0.13421138,92872.0,92852.0,0.09696]
[1768785425939,0.010772,92868.0,92852.0,0.09696]